[Event "Kupreichik Memorial Rapid 2019"]
[Site "Minsk"]
[Date "2019.08.16"]
[Round "6.21"]
[White "Khrapko, Marharyta"]
[Black "Kameko, Aleksandr"]
[Result "1/2-1/2"]
[ECO "B74"]
[WhiteElo "2073"]
[BlackElo "2045"]
[Annotator "NA"]
[PlyCount "139"]
[EventDate "2019.08.15"]
[EventType "swiss"]
[EventCountry "BLR"]
[SourceTitle "playchess.com"]
[Source "ChessBase"]
[SourceQuality "1"]
[TimeControl "900+10"]

1. e4 {[%emt 0:00:00]} c5 {[%emt 0:00:00]} 2. Nf3 {[%emt 0:00:00]} Nc6 {[%emt 0:00:00]} 3. d4 {[%emt 0:00:00]} cxd4 {[%emt 0:00:00]} 4. Nxd4 {[%emt 0:00:00]} Nf6 {[%emt 0:00:00]} 5. Nc3 {[%emt 0:00:00]} d6 {[%emt 0:00:00]} 6. Be2 {[%emt 0:00:07]} g6 {[%emt 0:00:00]} 7. Be3 {[%emt 0:00:18]} Bg7 {[%emt 0:00:01]} 8. O-O {[%emt 0:00:03]} O-O {[%emt 0:00:01]} 9. Nb3 {[%emt 0:00:21]} Be6 {[%emt 0:00:26]} 10. f4 {[%emt 0:00:04]} Rc8 {[%emt 0:00:45]} 11. Bf3 {[%emt 0:00:38]} Nd7 {[%emt 0:01:36]} 12. Qd2 {[%emt 0:01:43]} Nb6 {[%emt 0:00:12]} 13. Be2 {[%emt 0:01:11]} Nc4 {[%emt 0:00:15]} 14. Bxc4 {[%emt 0:00:03]} Bxc4 {[%emt 0:00:01]} 15. Rf2 {[%emt 0:00:39]} a5 {[%emt 0:00:37]} 16. Nd4 {[%emt 0:01:08]} Ba6 {[%emt 0:01:07]} 17. Re1 {[%emt 0:02:06]} a4 {[%emt 0:01:02]} 18. Nxc6 {[%emt 0:02:14]} Rxc6 {[%emt 0:00:14]} 19. Nxa4 {[%emt 0:00:02]} Rc4 {[%emt 0:00:42]} 20. Bb6 {[%emt 0:01:02]} Qc8 {[%emt 0:00:14]} 21. b3 {[%emt 0:00:15]} Rxa4 {[%emt 0:00:33]} 22. bxa4 {[%emt 0:00:01]} Bc3 {[%emt 0:00:04]} 23. Qd1 {[%emt 0:00:05]} Bxe1 {[%emt 0:00:10]} 24. Qxe1 {[%emt 0:00:01]} Qc4 {[%emt 0:00:12]} 25. f5 {[%emt 0:00:39]} Qxa4 {[%emt 0:00:22]} 26. fxg6 {[%emt 0:01:26]} hxg6 {[%emt 0:00:05]} 27. h4 {[%emt 0:00:06]} Rc8 {[%emt 0:01:58]} 28. e5 {[%emt 0:00:54]} Qxh4 {[%emt 0:00:51]} 29. exd6 {[%emt 0:00:38]} exd6 {[%emt 0:00:02]} 30. Qe3 {[%emt 0:00:12]} Bb5 {[%emt 0:02:43]} 31. Bd4 {[%emt 0:00:28]} Re8 {[%emt 0:00:41]} 32. Qd2 {[%emt 0:00:02]} Qe4 {[%emt 0:00:38]} 33. Bf6 {[%emt 0:03:06]} Qe1+ {[%emt 0:00:59]} 34. Qxe1 {[%emt 0:00:03]} Rxe1+ {[%emt 0:00:01]} 35. Kh2 {[%emt 0:00:01]} Kf8 {[%emt 0:00:59]} 36. g4 {[%emt 0:00:29]} Ke8 {[%emt 0:00:24]} 37. g5 {[%emt 0:00:05]} Bc4 {[%emt 0:00:11]} 38. a3 {[%emt 0:00:14]} Kd7 {[%emt 0:00:20]} 39. Rd2 {[%emt 0:00:28]} Kc6 {[%emt 0:00:07]} 40. Kg3 {[%emt 0:00:06]} Re3+ {[%emt 0:00:09]} 41. Kf4 {[%emt 0:00:07]} Rxa3 {[%emt 0:00:09]} 42. Be7 {[%emt 0:00:01]} Bd5 {[%emt 0:00:26]} 43. Rd4 {[%emt 0:00:32]} Rf3+ {[%emt 0:00:29]} 44. Kg4 {[%emt 0:00:02]} Rc3 {[%emt 0:00:16]} 45. Rd2 {[%emt 0:00:07]} b5 {[%emt 0:00:13]} 46. Bf6 {[%emt 0:00:07]} Be6+ {[%emt 0:00:26]} 47. Kf4 {[%emt 0:00:07]} Rc4+ {[%emt 0:00:05]} 48. Ke3 {[%emt 0:00:11]} b4 {[%emt 0:00:12]} 49. Rd4 {[%emt 0:00:20]} Rc3+ {[%emt 0:00:24]} 50. Kd2 {[%emt 0:00:03]} Rc4 {[%emt 0:00:51]} 51. Rxc4+ {[%emt 0:00:10]} Bxc4 {[%emt 0:00:01]} 52. Be7 {[%emt 0:00:19]} Kd5 {[%emt 0:00:14]} 53. Bf8 {[%emt 0:00:03]} Bb5 {[%emt 0:00:10]} 54. Be7 {[%emt 0:00:01]} Bd7 {[%emt 0:00:14]} 55. Bf8 {[%emt 0:00:02]} Bf5 {[%emt 0:00:02]} 56. Be7 {[%emt 0:00:02]} Kc5 {[%emt 0:00:09]} 57. Bf8 {[%emt 0:00:20]} Kd5 {[%emt 0:00:10]} 58. Be7 {[%emt 0:00:02]} Ke6 {[%emt 0:00:02]} 59. Bf8 {[%emt 0:00:06]} Be4 {[%emt 0:00:16]} 60. Kc1 {[%emt 0:00:12]} Bd5 {[%emt 0:00:11]} 61. Kd2 {[%emt 0:00:04]} Bc4 {[%emt 0:00:03]} 62. Kd1 {[%emt 0:00:06]} b3 {[%emt 0:00:18]} 63. cxb3 {[%emt 0:00:02]} Bxb3+ {[%emt 0:00:01]} 64. Kd2 {[%emt 0:00:01]} Ba4 {[%emt 0:00:10]} 65. Ke3 {[%emt 0:00:02]} Bc6 {[%emt 0:00:06]} 66. Kd4 {[%emt 0:00:14]} Bb7 {[%emt 0:00:06]} 67. Bg7 {[%emt 0:00:13]} f5 {[%emt 0:00:15]} 68. gxf6 {[%emt 0:00:02]} g5 {[%emt 0:00:02]} 69. Bf8 {[%emt 0:00:40]} g4 {[%emt 0:00:10]} 70. f7 {[%emt 0:00:08] Ke5+ Ke4+} 1/2-1/2

[Event "Kupreichik Memorial Rapid 2019"]
[Site "Minsk"]
[Date "2019.08.16"]
[Round "6.22"]
[White "Zverev, Lev"]
[Black "Vashchilov, Sergey"]
[Result "0-1"]
[ECO "C15"]
[WhiteElo "1881"]
[BlackElo "2162"]
[Annotator "NA"]
[PlyCount "45"]
[EventDate "2019.08.15"]
[EventType "swiss"]
[EventCountry "BLR"]
[SourceTitle "playchess.com"]
[Source "ChessBase"]
[SourceQuality "1"]
[TimeControl "900+10"]

1. e4 {[%emt 0:00:00]} e6 {[%emt 0:00:00]} 2. d4 {[%emt 0:00:00]} d5 {[%emt 0:00:00]} 3. Nc3 {[%emt 0:00:00]} Bb4 {[%emt 0:00:00]} 4. a3 {[%emt 0:00:00]} Bxc3+ 5. bxc3 {[%emt 0:00:02]} dxe4 {[%emt 0:00:04]} 6. Qg4 {[%emt 0:00:02]} Nf6 {[%emt 0:00:05]} 7. Qxg7 {[%emt 0:00:02]} Rg8 {[%emt 0:00:01]} 8. Qh6 {[%emt 0:00:04]} Rg6 {[%emt 0:00:20]} 9. Qe3 {[%emt 0:00:05]} Nc6 {[%emt 0:00:28]} 10. Ne2 {[%emt 0:00:06]} Ne7 {[%emt 0:00:02]} 11. c4 {[%emt 0:00:12]} Nf5 {[%emt 0:00:15]} 12. Qc3 {[%emt 0:00:01]} b6 {[%emt 0:00:40]} 13. g3 {[%emt 0:00:02]} Bb7 {[%emt 0:00:15]} 14. Bg2 {[%emt 0:00:02]} Nh4 {[%emt 0:01:02]} 15. gxh4 {[%emt 0:00:26]} Rxg2 {[%emt 0:00:04]} 16. Be3 {[%emt 0:00:18]} Ng4 {[%emt 0:02:00]} 17. O-O-O {[%emt 0:00:48]} Qxh4 {[%emt 0:00:25]} 18. Rdf1 {[%emt 0:03:02]} O-O-O {[%emt 0:00:46]} 19. Rfg1 {[%emt 0:00:48]} Nxe3 {[%emt 0:00:44]} 20. Qxe3 {[%emt 0:00:58]} Qxf2 {[%emt 0:00:24]} 21. Kd2 {[%emt 0:00:05]} Rxd4+ {[%emt 0:01:55]} 22. Qxd4 {[%emt 0:00:23]} Qxd4+ {[%emt 0:00:03]} 23. Ke1 0-1

[Event "Kupreichik Memorial Rapid 2019"]
[Site "Minsk"]
[Date "2019.08.16"]
[Round "6.23"]
[White "Kolosovskaya, Olga"]
[Black "Naumovich, Yaroslav"]
[Result "0-1"]
[ECO "E06"]
[WhiteElo "1719"]
[BlackElo "1868"]
[Annotator "NA"]
[PlyCount "150"]
[EventDate "2019.08.15"]
[EventType "swiss"]
[EventCountry "BLR"]
[SourceTitle "playchess.com"]
[Source "ChessBase"]
[SourceQuality "1"]
[TimeControl "900+10"]

1. d4 {[%emt 0:00:00]} Nf6 {[%emt 0:00:00]} 2. c4 {[%emt 0:00:00]} e6 {[%emt 0:00:00]} 3. g3 {[%emt 0:00:00]} d5 {[%emt 0:00:00]} 4. Nf3 {[%emt 0:00:00]} Be7 {[%emt 0:00:00]} 5. Bg2 {[%emt 0:00:00]} O-O {[%emt 0:00:02]} 6. O-O {[%emt 0:00:00]} b6 {[%emt 0:00:05]} 7. Nc3 {[%emt 0:00:01]} Bb7 {[%emt 0:00:01]} 8. Ne5 {[%emt 0:00:02]} Nbd7 {[%emt 0:00:03]} 9. Qa4 {[%emt 0:00:02]} c5 {[%emt 0:01:54]} 10. Nxd7 {[%emt 0:04:02]} Nxd7 {[%emt 0:01:00]} 11. cxd5 {[%emt 0:00:44]} cxd4 {[%emt 0:00:03]} 12. Qxd4 {[%emt 0:00:31]} Bf6 {[%emt 0:00:53]} 13. Qd1 {[%emt 0:00:02]} Bxc3 {[%emt 0:01:02]} 14. bxc3 {[%emt 0:00:51]} Bxd5 {[%emt 0:00:02]} 15. Bxd5 exd5 {[%emt 0:00:02]} 16. Qxd5 {[%emt 0:00:07]} Rc8 {[%emt 0:00:01]} 17. Rd1 {[%emt 0:01:26]} Nc5 {[%emt 0:01:59]} 18. Qxd8 {[%emt 0:00:03]} Rfxd8 {[%emt 0:00:01]} 19. Rxd8+ {[%emt 0:00:03]} Rxd8 {[%emt 0:00:01]} 20. Be3 {[%emt 0:00:17]} Ne4 {[%emt 0:02:04]} 21. Bd4 {[%emt 0:00:03]} Nd2 {[%emt 0:00:14]} 22. Rd1 {[%emt 0:00:39]} Nc4 {[%emt 0:00:01]} 23. Kf1 {[%emt 0:00:12]} f6 {[%emt 0:00:07]} 24. e3 {[%emt 0:00:06]} Kf7 {[%emt 0:00:14]} 25. Ke2 {[%emt 0:00:01]} Ke6 {[%emt 0:00:42]} 26. Rb1 {[%emt 0:00:11]} Rc8 {[%emt 0:00:58]} 27. Rb4 {[%emt 0:00:14]} Nd6 {[%emt 0:01:12]} 28. Kd3 {[%emt 0:00:31]} Rc7 {[%emt 0:02:07]} 29. f3 {[%emt 0:02:29]} g6 {[%emt 0:00:46]} 30. Rb1 {[%emt 0:01:21]} Rd7 {[%emt 0:01:24]} 31. Ra1 {[%emt 0:00:16]} Nb7 {[%emt 0:00:10]} 32. Ke2 {[%emt 0:00:16]} Rc7 {[%emt 0:00:19]} 33. h4 {[%emt 0:00:39]} Rc8 {[%emt 0:01:10]} 34. g4 {[%emt 0:00:37]} Nd6 {[%emt 0:00:18]} 35. g5 {[%emt 0:01:06]} f5 {[%emt 0:00:03]} 36. Rh1 {[%emt 0:00:25]} Rc4 {[%emt 0:00:11]} 37. Kd3 {[%emt 0:00:13]} Ra4 {[%emt 0:00:01]} 38. Rh2 {[%emt 0:00:03]} Nf7 {[%emt 0:00:13]} 39. Rb2 {[%emt 0:00:58]} Nd6 {[%emt 0:00:12]} 40. Re2 {[%emt 0:00:31]} Ra5 {[%emt 0:00:24]} 41. e4 {[%emt 0:00:17]} f4 {[%emt 0:00:20]} 42. Rb2 {[%emt 0:00:11]} Ra4 {[%emt 0:00:21]} 43. Rc2 {[%emt 0:00:17]} Nc4 {[%emt 0:00:12]} 44. Rh2 {[%emt 0:00:14]} Nd6 {[%emt 0:00:17]} 45. Rg2 {[%emt 0:00:08]} Ra5 {[%emt 0:00:11]} 46. Rh2 {[%emt 0:00:14]} Nf7 {[%emt 0:00:08]} 47. Rb2 {[%emt 0:00:20]} Nd6 {[%emt 0:00:03]} 48. Bg1 {[%emt 0:01:14]} Ra4 {[%emt 0:00:32]} 49. Bd4 {[%emt 0:00:18]} Ra5 {[%emt 0:00:06]} 50. Rh2 {[%emt 0:00:02]} Nf7 {[%emt 0:00:01]} 51. Kc4 {[%emt 0:00:10]} Nd6+ {[%emt 0:00:06]} 52. Kb3 {[%emt 0:00:15]} Rb5+ {[%emt 0:00:05]} 53. Kc2 {[%emt 0:00:07]} Nc4 {[%emt 0:00:05]} 54. Kc1 {[%emt 0:00:02]} Ra5 {[%emt 0:00:06]} 55. Kb1 {[%emt 0:00:08]} Rb5+ {[%emt 0:00:02]} 56. Ka1 {[%emt 0:00:06]} a5 {[%emt 0:00:17]} 57. Rc2 {[%emt 0:00:23]} a4 {[%emt 0:00:04]} 58. Bf2 {[%emt 0:00:25]} a3 {[%emt 0:00:09]} 59. Bd4 {[%emt 0:00:13]} Ra5 {[%emt 0:00:41]} 60. Rc1 {[%emt 0:00:11]} Nd2 {[%emt 0:00:20]} 61. Bxb6 {[%emt 0:00:07]} Rb5 {[%emt 0:00:01]} 62. Bc7 {[%emt 0:00:15]} Nxf3 {[%emt 0:00:10]} 63. Bxf4 {[%emt 0:00:02]} Nxh4 {[%emt 0:00:13]} 64. c4 {[%emt 0:00:12]} Rc5 {[%emt 0:00:16]} 65. Rc3 {[%emt 0:00:12]} Ng2 {[%emt 0:00:04]} 66. Bg3 {[%emt 0:00:01]} Rxg5 {[%emt 0:00:03]} 67. Rxa3 {[%emt 0:00:03]} h5 {[%emt 0:00:12]} 68. Ra6+ {[%emt 0:00:02]} Kd7 {[%emt 0:00:03]} 69. Bh4 {[%emt 0:00:20]} Nxh4 {[%emt 0:00:02]} 70. Kb2 {[%emt 0:00:07]} Nf3 {[%emt 0:00:02]} 71. Kc3 {[%emt 0:00:01]} h4 {[%emt 0:00:03]} 72. Ra7+ {[%emt 0:00:02]} Kd6 {[%emt 0:00:03]} 73. Rh7 {[%emt 0:00:02]} Rh5 {[%emt 0:00:03]} 74. Rg7 {[%emt 0:00:03]} Rh6 {[%emt 0:00:01]} 75. Rf7 {[%emt 0:00:02]} h3 {[%emt 0:00:06]} 0-1

[Event "Kupreichik Memorial Rapid 2019"]
[Site "Minsk"]
[Date "2019.08.16"]
[Round "6.24"]
[White "Arlou, Valery"]
[Black "Shaban, Alena"]
[Result "0-1"]
[ECO "D02"]
[WhiteElo "1759"]
[BlackElo "2030"]
[Annotator "NA"]
[PlyCount "95"]
[EventDate "2019.08.15"]
[EventType "swiss"]
[EventCountry "BLR"]
[SourceTitle "playchess.com"]
[Source "ChessBase"]
[SourceQuality "1"]
[TimeControl "900+10"]

1. d4 {[%emt 0:00:00]} d5 {[%emt 0:00:00]} 2. Nf3 {[%emt 0:00:00]} Nf6 {[%emt 0:00:00]} 3. Bf4 {[%emt 0:00:00]} c5 {[%emt 0:00:02]} 4. e3 {[%emt 0:00:05]} Qb6 {[%emt 0:00:26]} 5. Nbd2 {[%emt 0:00:26]} Nc6 {[%emt 0:02:39]} 6. dxc5 {[%emt 0:00:51]} Qxc5 {[%emt 0:00:04]} 7. Be2 {[%emt 0:00:39]} Bf5 {[%emt 0:00:03]} 8. c3 {[%emt 0:00:40]} e6 {[%emt 0:00:24]} 9. O-O {[%emt 0:00:23]} Be7 {[%emt 0:00:02]} 10. Nd4 {[%emt 0:00:14]} Bg6 {[%emt 0:00:19]} 11. N2f3 {[%emt 0:01:01]} O-O {[%emt 0:00:06]} 12. Ne5 {[%emt 0:01:32]} Nxe5 {[%emt 0:00:19]} 13. Bxe5 {[%emt 0:00:04]} Qb6 {[%emt 0:00:08]} 14. Qb3 {[%emt 0:02:11]} Nd7 {[%emt 0:00:55]} 15. Qxb6 {[%emt 0:00:36]} Nxb6 {[%emt 0:00:02]} 16. Nf3 {[%emt 0:00:58]} Nc4 {[%emt 0:00:25]} 17. Bxc4 {[%emt 0:02:07]} dxc4 {[%emt 0:00:02]} 18. Rfd1 {[%emt 0:00:11]} Rfd8 {[%emt 0:00:14]} 19. Bc7 {[%emt 0:01:07]} Rxd1+ {[%emt 0:03:37]} 20. Rxd1 {[%emt 0:00:03]} f6 {[%emt 0:00:03]} 21. Rd4 {[%emt 0:00:34]} b5 {[%emt 0:00:22]} 22. Rd7 {[%emt 0:00:34]} Bf8 {[%emt 0:00:08]} 23. Bg3 {[%emt 0:00:17]} e5 {[%emt 0:00:19]} 24. Nh4 {[%emt 0:00:33]} Be8 {[%emt 0:00:03]} 25. Rd1 {[%emt 0:00:29]} a5 {[%emt 0:00:11]} 26. f4 {[%emt 0:00:39]} Bh5 {[%emt 0:00:52]} 27. Rd5 {[%emt 0:00:10]} exf4 {[%emt 0:00:26]} 28. exf4 {[%emt 0:00:19]} Be8 {[%emt 0:00:06]} 29. Bf2 {[%emt 0:00:32]} Bc6 {[%emt 0:00:13]} 30. Rd2 {[%emt 0:00:07]} Be4 {[%emt 0:00:29]} 31. Rd4 {[%emt 0:00:16]} Bb1 {[%emt 0:00:39]} 32. a3 {[%emt 0:00:07]} Bd3 {[%emt 0:00:08]} 33. Nf3 {[%emt 0:00:41]} Bg6 {[%emt 0:02:21]} 34. Rd5 {[%emt 0:00:10]} Be8 {[%emt 0:00:01]} 35. Nd4 {[%emt 0:00:24]} b4 {[%emt 0:00:07]} 36. axb4 {[%emt 0:00:50]} axb4 {[%emt 0:00:01]} 37. h3 {[%emt 0:00:22]} bxc3 {[%emt 0:00:13]} 38. bxc3 {[%emt 0:00:01]} Ra1+ {[%emt 0:00:09]} 39. Kh2 {[%emt 0:00:01]} Rc1 {[%emt 0:00:20]} 40. Rd8 {[%emt 0:00:03]} Kf7 {[%emt 0:00:01]} 41. Nf5 {[%emt 0:00:54]} Rxc3 {[%emt 0:00:34]} 42. Nd6+ {[%emt 0:00:23]} Bxd6 43. Rxd6 {[%emt 0:00:01]} Rc2 {[%emt 0:00:11]} 44. Be3 {[%emt 0:00:23]} c3 {[%emt 0:00:33]} 45. Rb6 {[%emt 0:00:17]} Rb2 {[%emt 0:00:10]} 46. Rb7+ Kg6 47. Ra7 Bc6 48. f5+ {[%emt 0:00:00] Kh6 Kg1+ g5 Kf2 Rb1 Rf7 c2 Bc1 Rb6} 0-1

[Event "Kupreichik Memorial Rapid 2019"]
[Site "Minsk"]
[Date "2019.08.16"]
[Round "6.26"]
[White "Mochalov, Evgeny V"]
[Black "Kasperovich, Mikhail"]
[Result "1-0"]
[ECO "A50"]
[WhiteElo "2374"]
[BlackElo "1324"]
[Annotator "NA"]
[PlyCount "41"]
[EventDate "2019.08.15"]
[EventType "swiss"]
[EventCountry "BLR"]
[SourceTitle "playchess.com"]
[Source "ChessBase"]
[SourceQuality "1"]
[TimeControl "900+10"]

1. d4 {[%emt 0:00:00]} Nf6 {[%emt 0:00:00]} 2. c4 {[%emt 0:00:00]} d5 {[%emt 0:00:00]} 3. cxd5 {[%emt 0:00:00]} Qxd5 {[%emt 0:00:00]} 4. Nc3 {[%emt 0:00:00]} Qd8 {[%emt 0:00:02]} 5. e4 {[%emt 0:00:01]} e6 {[%emt 0:00:10]} 6. Nf3 {[%emt 0:00:04]} c5 {[%emt 0:00:09]} 7. d5 {[%emt 0:01:05]} exd5 {[%emt 0:02:25]} 8. exd5 {[%emt 0:00:10]} a6 {[%emt 0:00:10]} 9. a4 {[%emt 0:00:21]} Bd6 {[%emt 0:00:44]} 10. Be2 {[%emt 0:02:12]} O-O {[%emt 0:00:10]} 11. O-O {[%emt 0:00:10]} Bf5 {[%emt 0:01:37]} 12. Nd2 {[%emt 0:01:12]} Qc7 {[%emt 0:02:33]} 13. g3 {[%emt 0:00:15]} Nbd7 14. Nc4 Nb6 {[%emt 0:01:27]} 15. Nxd6 {[%emt 0:01:51]} Qd7 {[%emt 0:01:10]} 16. Bf3 {[%emt 0:03:13]} Bg4 {[%emt 0:00:10]} 17. Bxg4 {[%emt 0:00:41]} Nxg4 {[%emt 0:00:29]} 18. Qb3 {[%emt 0:01:56]} Nc8 {[%emt 0:00:53]} 19. Nde4 {[%emt 0:00:30]} c4 {[%emt 0:00:10]} 20. Qxc4 {[%emt 0:00:10]} Nb6 {[%emt 0:00:10]} 21. Qd4 {[%emt 0:00:10]} 1-0

[Event "Kupreichik Memorial Rapid 2019"]
[Site "Minsk"]
[Date "2019.08.16"]
[Round "6.27"]
[White "Strizhnev, Ivan"]
[Black "Rataika, Mikalai"]
[Result "1-0"]
[ECO "B40"]
[WhiteElo "1394"]
[BlackElo "1920"]
[Annotator "NA"]
[PlyCount "55"]
[EventDate "2019.08.15"]
[EventType "swiss"]
[EventCountry "BLR"]
[SourceTitle "playchess.com"]
[Source "ChessBase"]
[SourceQuality "1"]
[TimeControl "900+10"]

1. e4 {[%emt 0:00:00]} c5 {[%emt 0:00:00]} 2. Nf3 {[%emt 0:00:00]} e6 {[%emt 0:00:00]} 3. d4 {[%emt 0:00:00]} cxd4 {[%emt 0:00:04]} 4. Nxd4 {[%emt 0:00:02]} Nf6 {[%emt 0:00:03]} 5. Nc3 {[%emt 0:00:01]} Bb4 {[%emt 0:00:03]} 6. e5 {[%emt 0:00:15]} Nd5 {[%emt 0:00:10]} 7. Qg4 {[%emt 0:00:15]} g6 {[%emt 0:00:07]} 8. Bd2 {[%emt 0:00:33]} Nxc3 {[%emt 0:00:19]} 9. bxc3 {[%emt 0:00:16]} Be7 {[%emt 0:00:27]} 10. Bd3 {[%emt 0:00:11]} Nc6 {[%emt 0:00:19]} 11. O-O {[%emt 0:00:18]} Nxe5 {[%emt 0:00:10]} 12. Qg3 {[%emt 0:00:43]} Nc6 {[%emt 0:00:47]} 13. Nb5 {[%emt 0:00:46]} d6 {[%emt 0:00:08]} 14. Bh6 {[%emt 0:00:54]} a6 {[%emt 0:00:12]} 15. Nd4 {[%emt 0:00:01]} Bf6 {[%emt 0:01:45]} 16. Rae1 {[%emt 0:02:58]} Nxd4 {[%emt 0:00:30]} 17. cxd4 {[%emt 0:00:02]} Bxd4 {[%emt 0:00:23]} 18. Kh1 {[%emt 0:00:23]} Bf6 {[%emt 0:01:07]} 19. f4 {[%emt 0:00:19]} Bh4 {[%emt 0:00:45]} 20. Qg4 {[%emt 0:00:39]} Bxe1 {[%emt 0:00:43]} 21. Rxe1 {[%emt 0:00:04]} Qa5 {[%emt 0:00:54]} 22. Qg3 {[%emt 0:01:01]} Bd7 {[%emt 0:00:50]} 23. Bg5 {[%emt 0:00:13]} f5 {[%emt 0:04:10]} 24. Bc4 {[%emt 0:01:06]} d5 {[%emt 0:00:07]} 25. Bxd5 {[%emt 0:00:04]} Qxd5 {[%emt 0:00:03]} 26. Qa3 {[%emt 0:00:01]} Qxg2+ {[%emt 0:03:56]} 27. Kxg2 {[%emt 0:00:02]} Bc6+ {[%emt 0:00:00]} 28. Kg1 {[%emt 0:00:03]} 1-0

[Event "Kupreichik Memorial Rapid 2019"]
[Site "Minsk"]
[Date "2019.08.16"]
[Round "6.28"]
[White "Karlov, Egor"]
[Black "Talma, Sergei"]
[Result "0-1"]
[ECO "D08"]
[WhiteElo "1728"]
[BlackElo "1882"]
[Annotator "NA"]
[PlyCount "74"]
[EventDate "2019.08.15"]
[EventType "swiss"]
[EventCountry "BLR"]
[SourceTitle "playchess.com"]
[Source "ChessBase"]
[SourceQuality "1"]
[TimeControl "900+10"]

1. d4 d5 2. c4 {[%emt 0:00:04]} e5 {[%emt 0:00:06]} 3. dxe5 {[%emt 0:01:11]} d4 {[%emt 0:00:02]} 4. Nf3 {[%emt 0:00:11]} Nc6 {[%emt 0:00:03]} 5. e3 {[%emt 0:00:50]} Bb4+ {[%emt 0:00:16]} 6. Bd2 {[%emt 0:00:42]} dxe3 {[%emt 0:00:10]} 7. fxe3 {[%emt 0:01:47]} Bxd2+ {[%emt 0:00:10]} 8. Nbxd2 {[%emt 0:00:05]} Qe7 {[%emt 0:02:03]} 9. Qc2 {[%emt 0:01:54]} Nxe5 {[%emt 0:00:49]} 10. Nxe5 {[%emt 0:00:55]} Qxe5 {[%emt 0:00:02]} 11. O-O-O {[%emt 0:00:06]} Nf6 {[%emt 0:01:21]} 12. Kb1 {[%emt 0:01:16]} Bf5 {[%emt 0:04:08]} 13. Bd3 {[%emt 0:00:46]} Bxd3 {[%emt 0:00:24]} 14. Qxd3 {[%emt 0:00:18]} Rd8 {[%emt 0:00:40]} 15. Qb3 {[%emt 0:00:50]} O-O {[%emt 0:00:03]} 16. Nf3 {[%emt 0:00:53]} Qe4+ {[%emt 0:00:30]} 17. Ka1 {[%emt 0:00:02]} c5 {[%emt 0:01:10]} 18. a3 {[%emt 0:00:42]} h6 {[%emt 0:00:23]} 19. h3 {[%emt 0:01:24]} Rfe8 {[%emt 0:00:24]} 20. Ka2 {[%emt 0:02:17]} Qc6 {[%emt 0:00:45]} 21. Rxd8 {[%emt 0:00:17]} Rxd8 {[%emt 0:00:01]} 22. Rd1 {[%emt 0:00:01]} Re8 {[%emt 0:00:21]} 23. Qd3 {[%emt 0:00:28]} Qe6 {[%emt 0:00:51]} 24. Re1 {[%emt 0:00:26]} b5 {[%emt 0:01:20]} 25. Nd2 {[%emt 0:00:24]} a5 {[%emt 0:01:47]} 26. Kb1 {[%emt 0:00:47]} b4 {[%emt 0:00:01]} 27. axb4 {[%emt 0:00:03]} axb4 {[%emt 0:00:03]} 28. Nb3 {[%emt 0:00:01]} Ne4 {[%emt 0:00:25]} 29. Re2 {[%emt 0:00:46]} Qe5 {[%emt 0:00:30]} 30. Kc2 {[%emt 0:00:15]} Ng3 {[%emt 0:00:27]} 31. Re1 {[%emt 0:00:05]} Nf5 {[%emt 0:00:14]} 32. e4 {[%emt 0:00:14]} Nd4+ {[%emt 0:00:23]} 33. Nxd4 {[%emt 0:00:10]} cxd4 {[%emt 0:00:01]} 34. Kb3 {[%emt 0:00:15]} f5 {[%emt 0:00:06]} 35. Kxb4 {[%emt 0:00:13]} fxe4 {[%emt 0:00:03]} 36. Qd2 {[%emt 0:00:06]} e3 {[%emt 0:00:32]} 37. Qe2 {[%emt 0:00:11]} Rb8+ {[%emt 0:00:09]} 0-1

[Event "Kupreichik Memorial Rapid 2019"]
[Site "Minsk"]
[Date "2019.08.16"]
[Round "6.29"]
[White "Yasiukovich, Sergei"]
[Black "Masjuk, Vladimir"]
[Result "0-1"]
[ECO "A41"]
[WhiteElo "1529"]
[BlackElo "1900"]
[Annotator "NA"]
[PlyCount "80"]
[EventDate "2019.08.15"]
[EventType "swiss"]
[EventCountry "BLR"]
[SourceTitle "playchess.com"]
[Source "ChessBase"]
[SourceQuality "1"]
[TimeControl "900+10"]

1. d4 {[%emt 0:00:00]} d6 {[%emt 0:00:00]} 2. e4 {[%emt 0:00:00]} Nc6 {[%emt 0:00:00]} 3. c3 {[%emt 0:00:00]} e5 {[%emt 0:00:00]} 4. d5 {[%emt 0:00:40]} Nce7 {[%emt 0:00:03]} 5. Bb5+ {[%emt 0:00:50]} c6 {[%emt 0:00:13]} 6. dxc6 {[%emt 0:00:05]} bxc6 {[%emt 0:00:01]} 7. Ba4 {[%emt 0:00:20]} Qc7 {[%emt 0:00:11]} 8. Ne2 {[%emt 0:00:06]} Nf6 {[%emt 0:00:21]} 9. Nd2 {[%emt 0:00:04]} Ng6 {[%emt 0:00:07]} 10. O-O {[%emt 0:00:08]} Be7 {[%emt 0:00:06]} 11. c4 {[%emt 0:00:44]} O-O {[%emt 0:00:07]} 12. Bc2 {[%emt 0:00:29]} Bg4 {[%emt 0:00:11]} 13. f3 {[%emt 0:02:07]} Be6 {[%emt 0:00:11]} 14. Re1 {[%emt 0:00:28]} Qb6+ {[%emt 0:00:58]} 15. Kh1 {[%emt 0:00:11]} Nh5 {[%emt 0:00:13]} 16. b3 {[%emt 0:00:19]} Bh4 {[%emt 0:01:31]} 17. g3 {[%emt 0:00:48]} Be7 {[%emt 0:00:17]} 18. Nf1 {[%emt 0:00:14]} Rad8 {[%emt 0:00:36]} 19. Be3 {[%emt 0:00:25]} Qb7 {[%emt 0:00:06]} 20. Nc3 {[%emt 0:04:10]} Nf6 {[%emt 0:01:09]} 21. Nd2 {[%emt 0:02:54]} d5 {[%emt 0:00:07]} 22. cxd5 {[%emt 0:00:14]} cxd5 {[%emt 0:00:02]} 23. exd5 {[%emt 0:00:01]} Nxd5 {[%emt 0:00:19]} 24. Nxd5 {[%emt 0:00:05]} Bxd5 {[%emt 0:00:07]} 25. Qe2 {[%emt 0:00:03]} Bb4 {[%emt 0:00:21]} 26. Rf1 {[%emt 0:00:20]} f5 {[%emt 0:00:13]} 27. Bg5 {[%emt 0:00:36]} Rd7 {[%emt 0:01:04]} 28. Nc4 {[%emt 0:00:58]} e4 {[%emt 0:00:41]} 29. fxe4 {[%emt 0:00:07]} fxe4 {[%emt 0:00:08]} 30. Rxf8+ {[%emt 0:00:03]} Bxf8 {[%emt 0:00:09]} 31. Ne3 {[%emt 0:00:13]} Be6 {[%emt 0:00:29]} 32. Rd1 {[%emt 0:00:06]} Rxd1+ {[%emt 0:00:12]} 33. Qxd1 {[%emt 0:00:03]} h6 {[%emt 0:00:16]} 34. Bf4 {[%emt 0:00:19]} Nxf4 {[%emt 0:00:11]} 35. gxf4 {[%emt 0:00:01]} Qb6 {[%emt 0:02:17]} 36. Qe2 {[%emt 0:01:09]} Qd4 {[%emt 0:00:27]} 37. f5 {[%emt 0:00:46]} Bf7 {[%emt 0:00:18]} 38. Kg2 {[%emt 0:00:08]} Bc5 {[%emt 0:00:44]} 39. Ng4 {[%emt 0:00:55]} Bd5 {[%emt 0:01:21]} 40. Kh3 {[%emt 0:00:09]} h5 {[%emt 0:00:22]} 0-1